bitfinex-derivatives/quotes_ETHF0:USTF0_20250612
["timestamp","ask_amount","ask_price","bid_price","bid_amount"]
[1749723975127,0.73027,2738.2,2738.0,0.73032]
[1749723975431,0.73025,2738.3,2737.9,23.7342]
[1749723975626,3.83408055,2738.5,2737.9,23.7342]
[1749723975826,0.73024,2738.3,2738.1,0.73028]
[1749723976026,0.00548055,2738.5,2738.4,0.73021]
[1749723976227,0.00548055,2738.5,2738.4,8.54501]
[1749723977229,0.292,2739.0,2738.9,0.73008]
[1749723977429,0.292,2739.0,2738.9,22.61708]
[1749723979433,0.292,2739.0,2738.9,21.887]
[1749723979636,0.292,2739.0,2738.9,22.61708]
[1749723980341,0.292,2739.0,2738.7,3.86098055]
[1749723980532,0.73009,2738.9,2738.8,21.877]
[1749723980732,0.292,2739.0,2738.7,3.21328055]
[1749723980932,0.73008,2738.9,2738.8,22.6081]
[1749723981338,0.292,2739.0,2738.8,21.878]
[1749723981638,0.73008,2738.9,2738.8,21.878]
[1749723981839,1.02206,2739.0,2738.8,22.60808]
[1749723982035,0.292,2739.0,2738.9,0.73008]
[1749723982339,1.02205,2739.0,2738.9,0.73008]
[1749723982538,0.292,2739.0,2738.7,3.21328055]
[1749723982738,0.7301,2738.9,2738.7,3.21328055]
[1749723982938,0.292,2739.0,2738.7,3.94339055]
[1749723983240,0.7301,2738.8,2738.7,3.21328055]
[1749723983630,0.7301,2738.8,2738.7,25.07628055]
[1749723984230,1.8826,2738.9,2738.7,25.80641055]
[1749723984434,0.7301,2738.8,2738.7,25.07628055]
[1749723984632,2.61269,2738.9,2738.7,25.80640055]
[1749723984833,0.7301,2738.8,2738.7,25.80640055]
[1749723985239,0.7301,2738.8,2738.7,25.79440055]
[1749723985841,0.7301,2738.8,2738.7,25.06428055]
[1749723986737,0.7301,2738.8,2738.7,25.79441055]
[1749723986944,0.7301,2738.8,2738.7,25.06428055]
[1749723987133,0.7301,2738.8,2738.7,3.21328055]
[1749723987536,1.9705,2738.8,2738.7,7.82028055]
[1749723987741,2.5891,2738.8,2738.7,25.04928055]
[1749723988445,2.5891,2738.8,2738.7,7.82028055]
[1749723988741,2.5891,2738.8,2738.7,0.00548055]
[1749723988941,0.73024,2738.3,2738.2,4.607]
[1749723989242,0.73026,2738.2,2738.1,21.847]
[1749723989444,3.19486,2738.2,2738.1,21.847]
[1749723989840,2.4646,2738.2,2738.1,21.847]
[1749723990145,3.19486,2738.2,2738.1,21.847]
[1749723990942,3.19486,2738.2,2738.1,21.845]
[1749723991249,1.82549,2738.5,2738.1,21.845]
[1749723991250,3.2078,2738.7,2738.6,0.73016]
[1749723991453,1.2582,2739.0,2738.6,21.837]
[1749723991650,1.2582,2739.0,2738.6,23.66239]
[1749723991946,0.5476,2739.1,2738.9,0.73006]
[1749723992151,1.27762,2739.1,2739.0,5.33705]
[1749723992646,0.73002,2739.1,2739.0,4.607]
[1749723993040,0.73007,2739.0,2738.9,0.73008]
[1749723993241,0.73007,2739.0,2738.9,22.58108]
[1749723993448,0.73007,2739.0,2738.9,21.851]
[1749723993840,0.73008,2738.9,2738.8,3.2078]
[1749723994043,3.21328055,2739.2,2738.5,3.2078]
[1749723994343,0.73008,2738.9,2738.8,17.232]
[1749723994752,0.73006,2739.0,2738.9,0.73008]
[1749723994942,0.73006,2739.0,2738.8,20.4398]
[1749723995138,0.73004,2739.1,2738.9,0.73006]
[1749723995344,0.73004,2739.1,2739.0,5.35205]
[1749723995547,0.73004,2739.1,2739.0,4.622]
[1749723995744,0.73004,2739.1,2739.0,5.35205]
[1749723996043,0.73004,2739.1,2739.0,4.622]
[1749723996244,3.94330055,2739.2,2739.0,4.622]
[1749723996452,0.73002,2739.1,2739.0,4.622]
[1749723997640,2.03212,2739.1,2739.0,4.622]
[1749723998452,0.73013,2738.7,2738.6,0.73014]
[1749723998649,1.3021,2739.1,2738.6,21.845]
[1749723998853,0.73007,2739.0,2738.8,0.73009]
[1749723999148,0.73018,2738.5,2738.4,4.622]
[1749723999354,0.73018,2738.5,2738.4,21.883]
[1749723999751,0.73018,2738.5,2738.4,4.622]
[1749723999955,0.73018,2738.5,2738.0,40.8]
[1749724000254,1.8673,2738.7,2738.0,40.8]
[1749724000255,0.73021,2738.4,2738.3,0.73023]
[1749724000553,0.73019,2738.5,2738.4,0.73021]
[1749724000854,0.73021,2738.4,2738.3,0.73023]
[1749724001054,1.8673,2738.7,2738.3,21.879]
[1749724001258,0.73021,2738.4,2738.3,22.60922]
[1749724001551,1.8673,2738.7,2738.4,0.73019]
[1749724001552,0.73016,2738.6,2738.4,0.73019]
[1749724001856,0.73022,2738.4,2738.3,0.73023]
[1749724002051,0.73022,2738.4,2738.3,22.60023]
[1749724002352,0.73022,2738.4,2738.3,21.87]
[1749724003563,0.73021,2738.4,2738.3,21.856]
[1749724004953,0.73021,2738.4,2738.3,22.58624]
[1749724005456,0.73021,2738.4,2738.3,21.856]
[1749724005955,1.2639,2738.6,2737.9,3.86198055]
[1749724006156,0.73032,2738.0,2737.9,3.21328055]
[1749724006352,0.73032,2738.0,2737.9,0.00548055]
[1749724006857,0.73032,2738.0,2737.9,21.84848055]
[1749724007252,2.01332,2738.0,2737.9,4.62748055]
[1749724007452,0.5949,2738.3,2738.2,0.73026]
[1749724007655,1.32515,2738.3,2738.2,3.93806]
[1749724007961,0.7303,2738.1,2738.0,0.73032]
[1749724008154,0.7303,2738.1,2738.0,22.60332]
[1749724008657,0.7303,2738.1,2738.0,21.873]
[1749724008858,0.73028,2738.2,2738.0,21.873]
[1749724009059,0.73028,2738.2,2738.1,0.73028]
[1749724009249,0.5949,2738.3,2738.0,21.873]
[1749724009558,0.5949,2738.3,2738.1,0.73028]
[1749724009759,0.73029,2738.1,2738.0,22.60331]
[1749724009951,0.73028,2738.2,2738.1,0.73028]
[1749724010956,0.73029,2738.1,2738.0,4.622]
[1749724011261,0.73029,2738.1,2738.0,21.862]
[1749724012355,0.73032,2738.0,2737.9,0.00548055]
[1749724012655,2.00782,2738.0,2737.9,5.5e-07]
[1749724012855,8.43870017,2738.0,2737.9,5.5e-07]
[1749724013061,8.43868271,2738.0,2737.9,5.5e-07]
[1749724015357,7.00782,2738.0,2737.9,5.5e-07]
[1749724015556,2.00782,2738.0,2737.9,5.5e-07]
[1749724016152,7.00782,2738.0,2737.9,5.5e-07]
[1749724016762,2.00782,2738.0,2737.9,5.5e-07]
[1749724020764,0.73032,2738.0,2737.9,5.5e-07]
[1749724021265,0.73031,2738.1,2737.9,0.73034055]
[1749724021473,0.5949,2738.3,2737.9,1.20890055]
[1749724021668,3.2078,2738.4,2738.1,0.73028]
[1749724021862,0.73025,2738.3,2738.2,4.624]
[1749724022063,0.73024,2738.3,2738.2,4.624]
[1749724022264,0.73032,2738.0,2737.9,3.20780055]
[1749724022564,0.73032,2738.0,2737.9,5.5e-07]
[1749724022864,3.93812,2738.0,2737.9,5.5e-07]
[1749724023060,0.73053,2737.2,2737.1,3.2078]
[1749724023565,3.2078,2738.3,2737.3,1.82627]
[1749724023760,0.73034,2737.9,2737.8,0.73034]
[1749724023967,0.73034,2737.9,2737.8,4.623]
[1749724024168,0.73034,2737.9,2737.8,5.35337]
[1749724024369,0.73032,2738.0,2737.9,0.73032]
[1749724024560,0.73034,2737.9,2737.8,5.9109]
[1749724024765,0.73033,2738.0,2737.9,0.73032]
[1749724024964,0.73578055,2738.1,2738.0,0.73032]
[1749724025262,0.00548055,2738.1,2738.0,2.64352]
[1749724025462,3.4998,2738.8,2738.0,6.9132]
[1749724025661,0.73018,2738.6,2738.3,3.2078]
[1749724025868,0.73018,2738.6,2738.5,0.73017]
[1749724025869,0.73017,2738.6,2738.5,0.73017]
[1749724026275,0.73015,2738.6,2738.5,2.64937]
[1749724026567,0.73018,2738.5,2738.4,21.98]
[1749724027272,0.73018,2738.5,2738.4,22.71021]
[1749724027667,0.73014,2738.7,2738.6,0.73015]
[1749724027873,4.05288055,2738.8,2738.5,0.644]
[1749724028170,0.73017,2738.6,2738.5,1.9379]
[1749724028871,0.73021,2738.4,2738.3,3.2078]
[1749724029072,0.73021,2738.4,2738.3,7.8768]
[1749724029371,0.73021,2738.4,2738.3,4.669]
[1749724030164,1.8256,2738.3,2737.8,21.995]
[1749724030365,0.73032,2738.0,2737.9,0.73032]
[1749724030567,0.73032,2738.0,2737.9,1.91692]
[1749724031273,0.7303,2738.1,2738.0,0.73029]
[1749724031575,0.7303,2738.1,2738.0,3.2078]
[1749724031973,0.7303,2738.1,2738.0,3.93812]
[1749724032370,0.7303,2738.1,2738.0,3.2078]
[1749724032864,0.73023,2738.4,2738.3,0.73023]
[1749724033068,0.6509,2738.6,2738.0,3.2078]
[1749724033069,1.82546,2738.5,2738.0,3.2078]
[1749724033267,1.82546,2738.5,2738.1,0.73027]
[1749724033268,0.73028,2738.2,2738.1,0.73027]
[1749724033474,0.6509,2738.6,2738.0,3.8324]
[1749724033674,0.7302,2738.5,2738.4,0.73019]
[1749724033875,0.73021,2738.4,2738.3,4.669]
[1749724035077,0.73025,2738.3,2737.8,21.997]
[1749724035281,0.73025,2738.3,2738.2,0.73024]
[1749724035575,3.8225,2738.7,2738.2,4.669]
[1749724035784,0.7302,2738.5,2738.4,0.73019]
[1749724035978,0.73018,2738.5,2738.4,17.376]
[1749724036575,0.73018,2738.5,2738.3,0.73023]
[1749724036576,0.73024,2738.3,2738.2,22.042]
[1749724036776,0.73024,2738.3,2738.0,3.8324]
[1749724036777,0.73029,2738.1,2738.0,3.8324]
[1749724036973,0.73029,2738.1,2738.0,3.2078]
[1749724037181,0.73038,2737.8,2737.7,0.73038]
[1749724037874,0.7304,2737.7,2737.6,1.35598055]
[1749724038177,0.7304,2737.7,2737.6,1.35600055]
[1749724038778,0.73038,2737.8,2737.7,0.73037]
[1749724038978,0.7304,2737.7,2737.6,3.25419055]
[1749724039175,0.7304,2737.7,2737.6,0.73589055]
[1749724039380,0.7304,2737.7,2737.6,0.00548055]
[1749724040676,1.3383,2737.7,2737.6,0.00548055]
[1749724040881,2.6182,2737.7,2737.6,0.00548055]
[1749724043480,0.6079,2737.7,2737.6,0.00548055]
[1749724043781,6.24778,2738.1,2737.6,0.00548055]
[1749724043993,0.73038,2737.8,2737.6,0.00548055]
[1749724044483,0.73038,2737.8,2737.6,0.73588055]
[1749724044684,0.7304,2737.7,2737.6,0.00548055]
[1749724045081,0.7304,2737.7,2737.6,0.73590055]
[1749724045476,0.7304,2737.7,2737.6,0.00548055]
[1749724046287,1.2449,2737.9,2736.9,22.135]
[1749724046288,0.7306,2737.0,2736.9,22.135]
[1749724047285,0.7306,2737.0,2736.9,22.9166]
[1749724047586,0.7306,2737.0,2736.9,22.181]
[1749724047786,0.7306,2737.0,2736.9,4.67]
[1749724048086,0.7306,2737.0,2736.9,22.178]
[1749724049985,0.7306,2737.0,2736.9,22.90861]
[1749724050186,0.73058,2737.1,2737.0,0.73057]
[1749724050383,0.73056,2737.1,2737.0,3.2078]
[1749724051690,1.92276,2737.1,2737.0,20.7038]
[1749724051891,0.00548055,2737.2,2737.1,0.73056]
[1749724052095,0.00548055,2737.2,2737.1,2.01006]
[1749724052286,0.6034,2737.8,2737.7,0.7304]
[1749724052485,1.33377,2737.8,2737.7,17.509]
[1749724052895,0.73037,2737.8,2737.7,17.509]
[1749724054892,3.93816,2737.9,2737.7,17.509]
[1749724055191,0.73037,2737.8,2737.7,17.509]
[1749724055492,1.82593,2737.8,2737.5,17.496]
[1749724055694,0.73042,2737.6,2737.5,17.496]
[1749724055892,0.73048,2737.4,2737.3,4.776]
[1749724056094,1.27838,2737.4,2737.3,22.336]
[1749724056993,1.27838,2737.4,2737.3,4.776]
[1749724057191,0.73056,2737.1,2737.0,30.0728]
[1749724057392,0.73056,2737.1,2737.0,47.6328]
[1749724057991,0.73056,2737.1,2737.0,30.0728]
[1749724058198,0.73056,2737.1,2736.7,0.00548055]
[1749724058199,0.73064,2736.8,2736.7,0.00548055]
[1749724058590,5.73064,2736.8,2736.7,0.00548055]
[1749724058789,8.93844,2736.8,2736.7,0.00548055]
[1749724059004,1.82691,2736.4,2735.6,7.9838]
[1749724059192,0.73088,2735.9,2735.6,8.71475]
[1749724059394,0.73088,2735.9,2735.6,7.9838]
[1749724059588,0.73088,2735.9,2735.6,25.5638]
[1749724059795,1.2205,2736.1,2735.6,20.7878]
[1749724059987,0.00548055,2736.2,2736.1,0.73082]
[1749724060189,0.00548055,2736.2,2736.1,17.589]
[1749724060392,0.00548055,2736.2,2736.1,18.31982]
[1749724061298,0.00548055,2736.2,2736.1,1.97602]
[1749724061500,0.73629055,2736.2,2736.1,17.609]
[1749724061895,0.00548055,2736.2,2736.1,18.33982]
[1749724062992,1.82666,2736.7,2736.1,17.609]
[1749724063188,0.7307,2736.6,2736.2,3.2078]
[1749724063393,0.6444,2736.8,2736.3,5.50776]
[1749724063600,0.73068,2736.7,2736.5,0.7307]
[1749724063803,0.73068,2736.7,2736.6,17.649]
[1749724064098,0.73068,2736.7,2736.6,18.37969]
[1749724064294,0.73068,2736.7,2736.6,17.649]
[1749724064497,0.73068,2736.7,2736.6,18.37969]
[1749724064692,0.00548055,2736.9,2736.6,17.649]
[1749724064901,0.73066,2736.7,2736.6,18.37968]
[1749724065089,0.00548055,2736.9,2736.6,17.649]
[1749724065293,0.00548055,2736.9,2736.8,0.73064]
[1749724065488,0.00548055,2736.9,2736.7,1.91775]
[1749724065695,0.73610055,2736.9,2736.8,0.73064]
[1749724066103,0.00548055,2736.9,2736.8,0.73064]
[1749724066597,0.73609055,2736.9,2736.8,0.73064]
[1749724066798,0.00548055,2736.9,2736.7,5.9641]
[1749724067005,0.73066,2736.7,2736.6,20.8398]
[1749724067207,0.00548055,2736.9,2736.6,20.8398]
[1749724067501,0.73609055,2736.9,2736.8,0.73064]
[1749724068002,0.00548055,2736.9,2736.8,0.73064]
[1749724068397,0.00548055,2736.9,2736.8,5.50764]
[1749724068598,0.00548055,2736.9,2736.8,6.73134]
[1749724068805,0.73609055,2736.9,2736.8,6.73134]
[1749724069207,0.00548055,2736.9,2736.8,6.73134]
[1749724070109,0.00548055,2736.9,2736.8,5.50764]
[1749724070299,0.73609055,2736.9,2736.8,5.50764]
[1749724071006,0.73609055,2736.9,2736.8,4.777]
[1749724071714,0.73609055,2736.9,2736.8,5.50764]
[1749724072206,0.00548055,2736.9,2736.8,5.50764]
[1749724073303,3.2078,2738.1,2737.0,1.82646]
[1749724073508,0.73044,2737.6,2737.5,0.73043]
[1749724073809,0.73044,2737.6,2737.5,23.10843]
[1749724074199,0.00548055,2737.8,2737.5,22.378]
[1749724074404,0.73042,2737.6,2737.5,23.10843]
[1749724075006,0.73045,2737.5,2737.4,17.597]
[1749724075202,1.36565,2737.5,2737.4,17.597]
[1749724075599,0.73048,2737.4,2737.3,0.00548055]
[1749724075811,2.55608,2737.4,2737.3,0.00548055]
[1749724076105,2.55608,2737.4,2736.9,17.603]
[1749724076106,0.73061,2736.9,2736.8,7.9848]
[1749724076308,0.73061,2736.9,2736.8,25.5918]
[1749724076506,0.73061,2736.9,2736.8,20.8148]
[1749724077310,0.73061,2736.9,2736.8,20.8128]
[1749724078502,0.73061,2736.9,2736.8,20.8048]
[1749724079806,0.73064,2736.8,2736.7,4.777]
[1749724080005,0.73066,2736.7,2736.6,0.00548055]
[1749724080206,1.97036,2736.7,2736.6,17.58448055]
[1749724081212,1.97036,2736.7,2736.6,0.00548055]
[1749724086209,6.97036,2736.7,2736.6,0.00548055]
[1749724086412,0.73077,2736.3,2736.2,3.2078]
[1749724086612,0.73077,2736.3,2736.2,20.7338]
[1749724086815,0.73088,2735.9,2735.8,3.35177522]
[1749724088312,6.46226935,2735.9,2734.3,3.2078]
[1749724088511,3.2078,2735.5,2734.8,0.598]
[1749724088817,0.73107,2735.2,2735.0,0.7311]
[1749724089022,0.73112,2735.0,2734.9,5.4023]
[1749724090011,0.73112,2735.0,2734.9,23.0903]
[1749724090216,3.2078,2735.2,2734.9,23.0903]
[1749724090413,3.2078,2735.5,2734.9,23.0903]
[1749724090619,3.2078,2735.5,2735.4,0.73101]
[1749724090916,1.2857,2736.0,2735.4,0.73101]
[1749724090917,3.2078,2736.0,2735.9,0.73088]
[1749724091108,3.2078,2736.0,2735.9,23.23388]
[1749724091314,3.2078,2736.0,2735.9,22.503]
[1749724091315,3.93865,2736.0,2735.9,22.503]
[1749724092320,3.2078,2736.0,2735.9,23.23388]
[1749724093015,0.00548055,2736.1,2736.0,0.73085]
[1749724093218,0.73630055,2736.1,2736.0,1.7781]
[1749724094018,0.00548055,2736.1,2736.0,2.50895]
[1749724094415,0.00548055,2736.1,2736.0,1.7781]
[1749724094716,0.00548055,2736.1,2736.0,2.50895]
[1749724095123,0.00548055,2736.1,2736.0,7.50895]
[1749724095912,0.73074,2736.5,2736.0,6.7781]
[1749724096112,0.73074,2736.5,2736.3,0.73075]
[1749724096313,0.73072,2736.5,2736.4,17.719]
[1749724096625,1.32332,2736.5,2736.4,17.719]
[1749724101024,0.73082,2736.1,2736.0,1.31973]
[1749724101228,0.73082,2736.1,2736.0,23.84273]
[1749724101630,3.93858,2736.3,2736.2,0.7308]
[1749724102021,3.2078,2736.3,2736.2,1.3489]
[1749724102226,3.21328055,2736.7,2736.6,0.73069]
[1749724102425,0.00548055,2736.7,2736.6,23.22569]
[1749724103427,3.2078,2737.0,2736.9,0.73061]
[1749724103628,3.93838,2737.0,2736.9,0.73061]
[1749724103824,3.2078,2737.0,2736.9,0.73061]
[1749724104027,3.2078,2737.5,2736.9,3.93841]
[1749724104233,0.73052,2737.3,2737.2,0.73052]
[1749724104436,0.73052,2737.3,2737.2,18.42252]
[1749724105336,0.73049,2737.4,2737.3,0.73049]
[1749724105534,0.73049,2737.4,2737.3,4.801]
[1749724106040,0.73056,2737.1,2737.0,1.8527]
[1749724106244,0.73054,2737.2,2737.0,24.3297]
[1749724106438,0.00548055,2737.5,2737.1,22.475]
[1749724106638,0.00548055,2737.5,2737.4,0.73048]
[1749724106939,0.73593055,2737.5,2737.4,0.73048]
[1749724108136,0.7305,2737.3,2737.2,3.21328055]
[1749724108333,0.7305,2737.3,2737.2,25.67128055]
[1749724109044,0.7305,2737.3,2737.2,26.40181055]
[1749724109341,0.7305,2737.3,2737.2,25.68128055]
[1749724109937,0.73048,2737.4,2737.3,0.7305]
[1749724110243,0.00548055,2737.5,2737.4,0.73048]
[1749724110439,3.2078,2738.7,2737.3,1.211]
[1749724110746,3.2078,2738.7,2737.9,3.2078]
[1749724111039,0.73025,2738.3,2738.2,0.73024]
[1749724111344,0.00548055,2738.5,2738.2,3.2078]
[1749724111533,0.73024,2738.3,2738.2,3.93805]
[1749724111844,0.73022,2738.4,2738.3,0.73021]
[1749724112148,0.73024,2738.4,2738.3,4.8]
[1749724113539,0.73568055,2738.5,2738.4,0.73021]
[1749724114042,0.00548055,2738.5,2738.4,0.73021]
[1749724114341,0.6449,2738.9,2738.8,0.7301]
[1749724114542,1.8249,2739.4,2738.8,22.436]
[1749724114543,5.0086,2739.4,2738.8,22.436]
[1749724114740,0.73008,2738.9,2738.8,22.436]
[1749724115141,0.73008,2738.9,2738.8,23.16609]
[1749724115336,0.73008,2738.9,2738.8,22.436]
[1749724115946,0.00548055,2739.1,2738.6,0.00548055]
[1749724115947,0.73013,2738.7,2738.6,0.73563055]
[1749724116145,0.73013,2738.7,2738.6,23.21963055]
[1749724116443,0.73012,2738.8,2738.7,0.73011]
[1749724116641,0.73012,2738.8,2738.7,23.21711]
[1749724116842,0.73005,2739.0,2738.9,0.73007]
[1749724117345,0.73552055,2739.1,2739.0,0.73005]
[1749724117545,0.00548055,2739.1,2739.0,3.93785]
[1749724117846,3.8125,2739.7,2739.0,44.0078]
[1749724118048,0.73002,2739.1,2739.0,44.73782]
[1749724118245,0.73002,2739.1,2739.0,49.59582]
[1749724118544,0.73001,2739.2,2739.1,0.73002]
[1749724118749,0.73001,2739.2,2739.1,17.638]
[1749724119253,0.73,2739.2,2739.1,18.36802]
[1749724120346,0.00548055,2739.3,2739.2,0.73]
[1749724120347,0.73545055,2739.3,2739.2,0.73]
[1749724120743,0.73,2739.2,2739.1,18.368]
[1749724120946,0.00548055,2739.3,2739.2,0.73]
[1749724121537,0.00548055,2739.3,2739.0,48.8658]
[1749724121538,0.00548055,2739.3,2739.0,44.0078]
[1749724121740,0.73002,2739.1,2739.0,3.2078]
[1749724121944,0.73002,2739.1,2739.0,22.459]
[1749724122149,0.73002,2739.1,2739.0,22.464]
[1749724123047,1.37461,2739.2,2739.1,0.73002]
[1749724123846,1.3746,2739.2,2739.1,0.73002]
[1749724124453,1.3746,2739.2,2739.1,23.17102]
[1749724124647,0.73002,2739.1,2739.0,0.73003]
[1749724124852,0.73002,2739.1,2739.0,23.16503]
[1749724125254,0.73002,2739.1,2739.0,22.431]
[1749724125752,0.73002,2739.1,2739.0,23.16105]
[1749724125953,0.73002,2739.1,2739.0,22.431]
[1749724126247,2.01202,2739.1,2739.0,23.16105]
[1749724126451,2.01202,2739.1,2739.0,23.15005]
[1749724126653,2.01202,2739.1,2739.0,0.73005]
[1749724126949,0.73002,2739.1,2739.0,23.15005]
[1749724127151,0.73002,2739.1,2739.0,22.42]
[1749724127447,0.73002,2739.1,2739.0,23.15005]
[1749724127846,0.73002,2739.1,2739.0,22.42]
[1749724128153,0.73002,2739.1,2739.0,23.15005]
[1749724128353,0.73002,2739.1,2739.0,22.42]
[1749724128752,0.73002,2739.1,2739.0,23.15005]
[1749724129251,0.73002,2739.1,2739.0,22.398]
[1749724129553,0.73005,2739.0,2738.9,40.8]
[1749724129750,0.73005,2739.0,2738.9,63.192]
[1749724129948,0.73005,2739.0,2738.9,23.12208]
[1749724131153,0.73005,2739.0,2738.9,4.856]
[1749724131347,0.73013,2738.7,2738.6,4.86148055]
[1749724131551,0.73013,2738.7,2738.6,22.39748055]
[1749724132455,0.73004,2739.1,2739.0,0.73005]
[1749724132653,0.73004,2739.1,2739.0,17.536]
[1749724132854,0.73004,2739.1,2739.0,22.392]
[1749724133555,0.73004,2739.1,2739.0,23.12205]
[1749724133853,0.73004,2739.1,2739.0,22.392]
[1749724134044,0.73004,2739.1,2739.0,23.12205]
[1749724135854,1.37461,2739.2,2739.1,0.73002]
[1749724136055,2.10467045,2739.2,2739.1,0.73002]
[1749724136254,0.6446,2739.2,2739.1,0.73002]
[1749724136447,2.10460174,2739.2,2739.1,0.73002]
[1749724136651,2.83460174,2739.2,2739.1,0.73002]
[1749724137155,2.10460174,2739.2,2739.1,0.73002]
[1749724137455,2.83460174,2739.2,2739.1,0.73002]
[1749724138555,2.10460174,2739.2,2739.1,0.73002]
[1749724138865,1.46000174,2739.2,2739.1,0.73002]
[1749724139252,2.19000174,2739.2,2739.1,0.73002]
[1749724139655,1.46000174,2739.2,2739.1,0.73002]
[1749724139856,2.19000174,2739.2,2739.1,0.73002]
[1749724140660,1.46000174,2739.2,2739.1,0.73002]
[1749724140963,0.00548055,2739.3,2739.2,0.73]
[1749724141157,1.46526315,2739.3,2739.2,0.73]
[1749724142357,2.15002335,2740.0,2739.8,0.72984]
[1749724142560,1.45973052,2739.9,2739.8,0.72984]
[1749724142764,1.45973052,2739.9,2739.8,23.06284]
[1749724143166,0.6201,2740.3,2740.2,0.72973]
[1749724143359,1.3498,2740.3,2740.2,23.05673]
[1749724143557,1.3498,2740.3,2740.2,22.327]
[1749724144262,0.73325457,2740.5,2740.4,0.72968]
[1749724144860,0.00358457,2740.5,2740.4,0.72968]
[1749724145466,0.00358457,2740.5,2740.4,1.99028]
[1749724146667,0.00358457,2740.5,2740.4,22.96068]
[1749724148366,0.00358457,2740.5,2740.4,63.76068]
[1749724149267,5.0315,2741.2,2740.7,0.72958]
[1749724149466,0.72958,2740.8,2740.7,0.72958]
[1749724149666,0.72958,2740.8,2740.7,22.218]
[1749724150372,0.7296,2740.7,2740.6,3.2078]
[1749724150673,0.7296,2740.7,2740.6,25.4238]
[1749724150863,0.72956,2740.9,2740.8,0.72955]
[1749724151068,1.8712,2741.1,2740.6,25.4238]
[1749724151069,0.7296,2740.8,2740.7,0.72959]
[1749724152160,3.69496,2741.1,2740.6,25.4238]
[1749724152161,0.7296,2740.7,2740.6,3.2078]
[1749724152364,0.7296,2740.7,2740.6,4.762]
[1749724152575,0.7297,2740.3,2740.2,7.9698]
[1749724152775,0.7297,2740.3,2740.2,25.4068]
[1749724153269,0.7297,2740.3,2740.2,26.13653]
[1749724153470,0.7297,2740.3,2740.2,25.4068]
[1749724153869,1.82367,2741.2,2740.7,0.72957]
[1749724154071,0.72959,2740.8,2740.7,0.72957]
[1749724154276,0.72959,2740.8,2740.7,22.92857]
[1749724154665,0.72954,2741.0,2740.9,0.72952]
[1749724154872,0.72952,2741.0,2740.9,18.16253]
[1749724155378,0.61,2741.1,2741.0,0.72952]
[1749724156171,0.6079,2741.4,2740.9,18.0285]
[1749724156369,0.72954,2741.0,2740.9,0.72954]
[1749724156574,0.72954,2741.0,2740.9,22.91554]
[1749724157477,0.7295,2741.2,2741.1,0.72947]
[1749724157672,0.72951,2741.1,2741.0,0.7295]
[1749724158576,1.881,2741.4,2740.9,22.186]
[1749724158879,2.61043,2741.4,2741.3,0.72944]
[1749724159179,2.61043,2741.4,2741.3,22.91544]
[1749724159382,1.33733,2741.4,2741.3,22.91544]
[1749724160087,0.72937,2741.6,2741.3,22.186]
[1749724160288,0.72937,2741.6,2741.5,0.72936]
[1749724160782,0.72941,2741.5,2741.4,0.7294]
[1749724161481,0.72938,2741.6,2741.5,0.72936]
[1749724161681,5.0878,2741.7,2741.3,22.186]
[1749724161682,0.72932,2741.8,2741.7,0.72929]
[1749724161979,0.72929,2741.9,2741.8,0.72928]
[1749724162886,0.72936,2741.6,2741.5,40.80548055]
[1749724163084,0.72936,2741.6,2741.5,62.96448055]
[1749724163582,0.72935,2741.7,2741.5,62.96448055]
[1749724163781,0.72935,2741.7,2741.6,0.72933]
[1749724164280,0.72926,2742.0,2741.9,0.72925]
[1749724164477,1.2626,2742.4,2741.9,44.0078]
[1749724164680,0.72925,2742.0,2741.9,3.2078]
[1749724164878,0.72925,2742.0,2741.9,25.4108]
[1749724169888,0.72925,2742.0,2741.9,22.203]
[1749724172781,0.72925,2742.0,2741.9,4.761]
[1749724172982,0.72925,2742.0,2741.9,22.136]
[1749724179791,2.15357455,2742.0,2741.9,22.136]
[1749724181092,2.15357455,2742.0,2741.5,3.21328055]
[1749724181093,1.82322,2741.9,2741.5,3.21328055]
[1749724181288,1.82322,2741.9,2741.6,17.334]
[1749724181593,0.72933,2741.7,2741.6,17.334]
[1749724181890,0.72936,2741.6,2741.5,3.21328055]
[1749724182094,0.72936,2741.6,2741.5,17.33248055]
[1749724182698,2.15431937,2741.6,2741.5,17.33248055]
[1749724182992,3.38791937,2741.6,2741.5,0.00548055]
[1749724183194,3.38791937,2741.6,2741.5,5.5e-07]
[1749724183393,4.02351937,2741.6,2741.5,5.5e-07]
[1749724186294,0.72952,2741.0,2740.8,3.2078]
[1749724186600,0.72952,2741.0,2740.9,44.066]
[1749724186802,0.72952,2741.0,2740.9,22.064]
[1749724187002,0.72952,2741.0,2740.9,25.96694]
[1749724187300,0.72957,2740.8,2740.7,4.699]
[1749724187507,0.7297,2740.3,2740.2,3.2078]
[1749724187697,0.7297,2740.3,2740.2,7.9068]
[1749724187896,0.7297,2740.3,2740.2,25.2068]
[1749724188205,0.72973,2740.2,2740.1,22.056]
[1749724188390,0.72973,2740.2,2740.1,44.063]
[1749724189403,0.72973,2740.2,2740.1,44.065]
[1749724190301,0.72973,2740.2,2740.1,48.5051]
[1749724192709,0.72973,2740.2,2740.1,49.1154]
[1749724193111,0.72973,2740.2,2740.1,47.8831]
[1749724193410,0.72973,2740.2,2740.1,44.6753]
[1749724195217,0.72973,2740.2,2740.1,44.049]
[1749724202422,0.72973,2740.2,2740.1,44.77876]
[1749724202617,0.72973,2740.2,2740.1,44.049]